Workbook

Sheet lista
C3: Ref FACTURA | F3: Ref cocina | J3: precio | K3: ud
A4: ARTICULO | B4: Formato | C4: Ud | D4: coste | E4: ud2 | F4: Bruto | G4: Neto | H4: % Apvto | I4: Merma | J4: Columna3 | K4: Columna4
A6: ABADEJO | B6: 1 | C6: Kg | D6: 8.96 | E6: =Tabla13[[#This Row],[Ud]] -> Kg | F6: 1 | G6: 0.7 | H6: =Tabla13[[#This Row],[Neto]]/Tabla13[[#This Row],[Bruto]] -> 0.7 | I6: =1-H6 -> 0.3 | J6: =(1*D6)/B6 -> 8.96 | K6: =Tabla13[[#This Row],[ud2]] -> Kg
A7: ACEITE VIRGEN EXTRA | B7: 1 | C7: L | D7: 3.1 | E7: =Tabla13[[#This Row],[Ud]] -> L | F7: 1 | G7: 1 | H7: =Tabla13[[#This Row],[Neto]]/Tabla13[[#This Row],[Bruto]] -> 1 | I7: 0 | J7: 3.1 | K7: =Tabla13[[#This Row],[ud2]] -> L
A8: ACEITE DE SESÁMO | B8: 0.15 | C8: L | D8: 5.1 | E8: =Tabla13[[#This Row],[Ud]] -> L | F8: 1 | G8: 1 | H8: =Tabla13[[#This Row],[Neto]]/Tabla13[[#This Row],[Bruto]] -> 1 | I8: 0 | J8: 34 | K8: =Tabla13[[#This Row],[ud2]] -> L
A9: ACEITE GIRASOL | B9: 1 | C9: L | D9: 1.553 | E9: =Tabla13[[#This Row],[Ud]] -> L | F9: 1 | G9: 1 | H9: =Tabla13[[#This Row],[Neto]]/Tabla13[[#This Row],[Bruto]] -> 1 | I9: 0 | J9: 1.553 | K9: =Tabla13[[#This Row],[ud2]] -> L
A10: ACEITE OLIVA | B10: 1 | C10: L | D10: 3.05 | E10: =Tabla13[[#This Row],[Ud]] -> L | F10: 1 | G10: 1 | H10: =Tabla13[[#This Row],[Neto]]/Tabla13[[#This Row],[Bruto]] -> 1 | I10: 0 | J10: 3.05 | K10: =Tabla13[[#This Row],[ud2]] -> L
A11: ACEITE VAL DE QUIROGA | B11: 1 | C11: L | D11: 11.77 | E11: =Tabla13[[#This Row],[Ud]] -> L | F11: 1 | G11: 1 | H11: =Tabla13[[#This Row],[Neto]]/Tabla13[[#This Row],[Bruto]] -> 1 | I11: 0 | J11: 11.77 | K11: =Tabla13[[#This Row],[ud2]] -> L
A12: ACEITUNA NEGRA C/ HUESO | B12: 0.15 | C12: Kg | D12: 0.63 | E12: =Tabla13[[#This Row],[Ud]] -> Kg | F12: 1 | G12: 1 | H12: =Tabla13[[#This Row],[Neto]]/Tabla13[[#This Row],[Bruto]] -> 1 | I12: 0 | J12: 4.2 | K12: =Tabla13[[#This Row],[ud2]] -> Kg
A13: ACEITUNA NEGRA S/ HUESO | B13: 0.15 | C13: Kg | D13: 1.08 | E13: =Tabla13[[#This Row],[Ud]] -> Kg | F13: 1 | G13: 1 | H13: =Tabla13[[#This Row],[Neto]]/Tabla13[[#This Row],[Bruto]] -> 1 | I13: 0 | J13: 7.2 | K13: =Tabla13[[#This Row],[ud2]] -> Kg
A14: ACEITUNA VERDE C/ ANCHOA | B14: 0.15 | C14: Kg | D14: =(0.93+0.52)/2 -> 0.725 | E14: =Tabla13[[#This Row],[Ud]] -> Kg | F14: 1 | G14: 1 | H14: =Tabla13[[#This Row],[Neto]]/Tabla13[[#This Row],[Bruto]] -> 1 | I14: 0 | J14: 4.833333333 | K14: =Tabla13[[#This Row],[ud2]] -> Kg
A15: ACEITUNAS VERDE C/ HUESO | B15: 0.5 | C15: Kg | D15: 1.49 | E15: =Tabla13[[#This Row],[Ud]] -> Kg | F15: 1 | G15: 1 | H15: =Tabla13[[#This Row],[Neto]]/Tabla13[[#This Row],[Bruto]] -> 1 | I15: 0 | J15: 2.98 | K15: =Tabla13[[#This Row],[ud2]] -> Kg
A16: ACEITUNAS VERDE S/ HUESO | B16: 0.13 | C16: Kg | D16: 0.77 | E16: =Tabla13[[#This Row],[Ud]] -> Kg | F16: 1 | G16: 1 | H16: =Tabla13[[#This Row],[Neto]]/Tabla13[[#This Row],[Bruto]] -> 1 | I16: 0 | J16: 5.923076923 | K16: =Tabla13[[#This Row],[ud2]] -> Kg
A17: ACELGAS | B17: 1 | C17: Kg | D17: 0.99 | E17: =Tabla13[[#This Row],[Ud]] -> Kg | F17: 1 | G17: 0.95 | H17: =Tabla13[[#This Row],[Neto]]/Tabla13[[#This Row],[Bruto]] -> 0.95 | I17: 0.05 | J17: 0.99 | K17: =Tabla13[[#This Row],[ud2]] -> Kg
A18: ACHICORIA | B18: 1 | C18: Kg | D18: 1.3 | E18: =Tabla13[[#This Row],[Ud]] -> Kg | F18: 1 | G18: 1 | H18: =Tabla13[[#This Row],[Neto]]/Tabla13[[#This Row],[Bruto]] -> 1 | I18: 0 | J18: 1.3 | K18: =Tabla13[[#This Row],[ud2]] -> Kg
A19: AFAZRÁN EN RAMA | B19: 0.325 | C19: Kg | D19: 1.35 | E19: =Tabla13[[#This Row],[Ud]] -> Kg | F19: 1 | G19: 1 | H19: =Tabla13[[#This Row],[Neto]]/Tabla13[[#This Row],[Bruto]] -> 1 | I19: 0 | J19: 4.153846154 | K19: =Tabla13[[#This Row],[ud2]] -> Kg
A20: AGUACATE | B20: 1 | C20: Kg | D20: =(3.64+4.056)/2 -> 3.848 | E20: =Tabla13[[#This Row],[Ud]] -> Kg | F20: 1 | G20: 0.7 | H20: =Tabla13[[#This Row],[Neto]]/Tabla13[[#This Row],[Bruto]] -> 0.7 | I20: 0.3 | J20: 3.848 | K20: =Tabla13[[#This Row],[ud2]] -> Kg
A21: AGUJA DE CERDO C/ HUESO | B21: 1 | C21: Kg | D21: 3.9 | E21: =Tabla13[[#This Row],[Ud]] -> Kg | F21: 1 | G21: 0.9 | H21: =Tabla13[[#This Row],[Neto]]/Tabla13[[#This Row],[Bruto]] -> 0.9 | I21: 0.1 | J21: 3.9 | K21: =Tabla13[[#This Row],[ud2]] -> Kg
A22: AGUJA DE CERDO S/ HUESO | B22: 1 | C22: Kg | D22: 3.99 | E22: =Tabla13[[#This Row],[Ud]] -> Kg | F22: 1 | G22: 0.9 | H22: =Tabla13[[#This Row],[Neto]]/Tabla13[[#This Row],[Bruto]] -> 0.9 | I22: 0.1 | J22: 3.99 | K22: =Tabla13[[#This Row],[ud2]] -> Kg
A23: AGUJA DE TERNERA S/ HUESO | B23: 1 | C23: Kg | D23: 5.5 | E23: =Tabla13[[#This Row],[Ud]] -> Kg | F23: 1 | G23: 0.9 | H23: =Tabla13[[#This Row],[Neto]]/Tabla13[[#This Row],[Bruto]] -> 0.9 | I23: 0.1 | J23: 5.5 | K23: =Tabla13[[#This Row],[ud2]] -> Kg
A24: AJO | B24: 1 | C24: Kg | D24: 3.9 | E24: =Tabla13[[#This Row],[Ud]] -> Kg | F24: 1 | G24: 0.95 | H24: =Tabla13[[#This Row],[Neto]]/Tabla13[[#This Row],[Bruto]] -> 0.95 | I24: =1-H24 -> 0.05 | J24: =(1*D24)/B24 -> 3.9 | K24: =Tabla13[[#This Row],[ud2]] -> Kg
A25: AJO MOLIDO | B25: 0.5 | C25: Kg | D25: 5.39 | E25: =Tabla13[[#This Row],[Ud]] -> Kg | F25: 1 | G25: 1 | H25: =Tabla13[[#This Row],[Neto]]/Tabla13[[#This Row],[Bruto]] -> 1 | I25: 0 | J25: 10.78 | K25: =Tabla13[[#This Row],[ud2]] -> Kg
A26: ALBAHACA | B26: 1 | C26: Kg | D26: 2.568 | E26: =Tabla13[[#This Row],[Ud]] -> Kg | F26: 1 | G26: 1 | H26: =Tabla13[[#This Row],[Neto]]/Tabla13[[#This Row],[Bruto]] -> 1 | I26: 0 | J26: 2.568 | K26: =Tabla13[[#This Row],[ud2]] -> Kg
A27: ALCACHOFAS CONGELADAS | B27: 0.45 | C27: Kg | D27: 2.6 | E27: =Tabla13[[#This Row],[Ud]] -> Kg | F27: 1 | G27: 0.95 | H27: =Tabla13[[#This Row],[Neto]]/Tabla13[[#This Row],[Bruto]] -> 0.95 | I27: 0.05 | J27: 5.777777778 | K27: =Tabla13[[#This Row],[ud2]] -> Kg
A28: ALCACHOFAS CONSERVA | B28: 0.33 | C28: Kg | D28: 1.35 | E28: =Tabla13[[#This Row],[Ud]] -> Kg | F28: 1 | G28: 1 | H28: =Tabla13[[#This Row],[Neto]]/Tabla13[[#This Row],[Bruto]] -> 1 | I28: 0 | J28: 4.090909091 | K28: =Tabla13[[#This Row],[ud2]] -> Kg
A29: ALCAPARRAS | B29: 0.145 | C29: Kg | D29: 1.46 | E29: =Tabla13[[#This Row],[Ud]] -> Kg | F29: 1 | G29: 1 | H29: =Tabla13[[#This Row],[Neto]]/Tabla13[[#This Row],[Bruto]] -> 1 | I29: 0 | J29: 10.06896552 | K29: =Tabla13[[#This Row],[ud2]] -> Kg
A30: ALFALFA | B30: 0.15 | C30: Kg | D30: 2.21 | E30: =Tabla13[[#This Row],[Ud]] -> Kg | F30: 1 | G30: 1 | H30: =Tabla13[[#This Row],[Neto]]/Tabla13[[#This Row],[Bruto]] -> 1 | I30: 0 | J30: 14.73333333 | K30: =Tabla13[[#This Row],[ud2]] -> Kg
A31: ALGA NORI | B31: 0.05 | C31: Kg | D31: 3.25 | E31: =Tabla13[[#This Row],[Ud]] -> Kg | F31: 1 | G31: 1 | H31: =Tabla13[[#This Row],[Neto]]/Tabla13[[#This Row],[Bruto]] -> 1 | I31: 0 | J31: 65 | K31: =Tabla13[[#This Row],[ud2]] -> Kg
A32: APIO-NABO | B32: 1 | C32: Kg | D32: 1.924 | E32: =Tabla13[[#This Row],[Ud]] -> Kg | F32: 1 | G32: 0.8 | H32: =Tabla13[[#This Row],[Neto]]/Tabla13[[#This Row],[Bruto]] -> 0.8 | I32: 0.2 | J32: 1.924 | K32: =Tabla13[[#This Row],[ud2]] -> Kg
A33: BOLETUS EDULIS CONGELADO | B33: 1 | C33: Kg | D33: 19.589 | E33: =Tabla13[[#This Row],[Ud]] -> Kg | F33: 1 | G33: 1 | H33: =Tabla13[[#This Row],[Neto]]/Tabla13[[#This Row],[Bruto]] -> 1 | I33: 0 | J33: 19.589 | K33: =Tabla13[[#This Row],[ud2]] -> Kg
A34: BONITO NORTE | B34: 1 | C34: Kg | D34: 13 | E34: =Tabla13[[#This Row],[Ud]] -> Kg | F34: 1 | G34: 0.7 | H34: =Tabla13[[#This Row],[Neto]]/Tabla13[[#This Row],[Bruto]] -> 0.7 | I34: 0.3 | J34: 13 | K34: =Tabla13[[#This Row],[ud2]] -> Kg
A35: BOQUERÓN | B35: 1 | C35: Kg | D35: 7.9 | E35: =Tabla13[[#This Row],[Ud]] -> Kg | F35: 1 | G35: 0.7 | H35: =Tabla13[[#This Row],[Neto]]/Tabla13[[#This Row],[Bruto]] -> 0.7 | I35: 0.3 | J35: 7.9 | K35: =Tabla13[[#This Row],[ud2]] -> Kg
A36: BRANDY | B36: 0.7 | C36: L | D36: 5.51 | E36: =Tabla13[[#This Row],[Ud]] -> L | F36: 1 | G36: 1 | H36: =Tabla13[[#This Row],[Neto]]/Tabla13[[#This Row],[Bruto]] -> 1 | I36: 0 | J36: 7.871428571 | K36: =Tabla13[[#This Row],[ud2]] -> L
A37: BRECOL | B37: 1 | C37: Kg | D37: 1.72 | E37: =Tabla13[[#This Row],[Ud]] -> Kg | F37: 1 | G37: 0.9 | H37: =Tabla13[[#This Row],[Neto]]/Tabla13[[#This Row],[Bruto]] -> 0.9 | I37: 0.1 | J37: 1.72 | K37: =Tabla13[[#This Row],[ud2]] -> Kg
A38: BRILLO PASTELERÍA | B38: 5 | C38: Kg | D38: 21.24 | E38: =Tabla13[[#This Row],[Ud]] -> Kg | F38: 1 | G38: 1 | H38: =Tabla13[[#This Row],[Neto]]/Tabla13[[#This Row],[Bruto]] -> 1 | I38: 0 | J38: 4.248 | K38: =Tabla13[[#This Row],[ud2]] -> Kg
A39: BROTES DE SOJA | B39: 0.18 | C39: Gr | D39: 1.36 | E39: =Tabla13[[#This Row],[Ud]] -> Gr | F39: 1 | G39: 1 | H39: =Tabla13[[#This Row],[Neto]]/Tabla13[[#This Row],[Bruto]] -> 1 | I39: 0 | J39: 7.555555556 | K39: =Tabla13[[#This Row],[ud2]] -> Gr
A40: BUEI DE MAR | B40: 0.7 | C40: Ud | D40: 5.94 | E40: =Tabla13[[#This Row],[Ud]] -> Ud | F40: 1 | G40: 1 | H40: =Tabla13[[#This Row],[Neto]]/Tabla13[[#This Row],[Bruto]] -> 1 | I40: 0 | J40: 8.485714286 | K40: =Tabla13[[#This Row],[ud2]] -> Ud
A41: BUTELO | B41: 1 | C41: Kg | D41: 10.51 | E41: =Tabla13[[#This Row],[Ud]] -> Kg | F41: 1 | G41: 1 | H41: =Tabla13[[#This Row],[Neto]]/Tabla13[[#This Row],[Bruto]] -> 1 | I41: 0 | J41: 10.51 | K41: =Tabla13[[#This Row],[ud2]] -> Kg
A42: CABALLA | B42: 1 | C42: Kg | D42: 4 | E42: =Tabla13[[#This Row],[Ud]] -> Kg | F42: 1 | G42: 0.75 | H42: =Tabla13[[#This Row],[Neto]]/Tabla13[[#This Row],[Bruto]] -> 0.75 | I42: 0.25 | J42: 4 | K42: =Tabla13[[#This Row],[ud2]] -> Kg
A43: CABALLA | B43: 1 | C43: KG | D43: 4 | E43: =Tabla13[[#This Row],[Ud]] -> KG | F43: 1 | G43: 0.7 | H43: =G43/F43 -> 0.7 | I43: 0.3 | J43: 4 | K43: =Tabla13[[#This Row],[ud2]] -> KG
A44: CABELLO DE ANGEL | B44: 0.85 | C44: Kg | D44: 2.138 | E44: =Tabla13[[#This Row],[Ud]] -> Kg | F44: 1 | G44: 1 | H44: =Tabla13[[#This Row],[Neto]]/Tabla13[[#This Row],[Bruto]] -> 1 | I44: 0 | J44: 2.515294118 | K44: =Tabla13[[#This Row],[ud2]] -> Kg
A45: CABRACHO | B45: 2.6 | C45: Kg | D45: 17.39 | E45: =Tabla13[[#This Row],[Ud]] -> Kg | F45: 1 | G45: 0.75 | H45: =Tabla13[[#This Row],[Neto]]/Tabla13[[#This Row],[Bruto]] -> 0.75 | I45: 0.25 | J45: 6.688461538 | K45: =Tabla13[[#This Row],[ud2]] -> Kg
A46: CACAHUETE FRITO | B46: 0.25 | C46: Gr | D46: 1.57 | E46: =Tabla13[[#This Row],[Ud]] -> Gr | F46: 1 | G46: 1 | H46: =Tabla13[[#This Row],[Neto]]/Tabla13[[#This Row],[Bruto]] -> 1 | I46: 0 | J46: 6.28 | K46: =Tabla13[[#This Row],[ud2]] -> Gr
A47: CACAO EN POLVO | B47: 1 | C47: Kg | D47: 3 | E47: =Tabla13[[#This Row],[Ud]] -> Kg | F47: 1 | G47: 1 | H47: =Tabla13[[#This Row],[Neto]]/Tabla13[[#This Row],[Bruto]] -> 1 | I47: 0 | J47: 3 | K47: =Tabla13[[#This Row],[ud2]] -> Kg
A48: CACHOLA CERDO SALADA | B48: 1 | C48: Kg | D48: 2.74 | E48: =Tabla13[[#This Row],[Ud]] -> Kg | F48: 1 | G48: 1 | H48: =Tabla13[[#This Row],[Neto]]/Tabla13[[#This Row],[Bruto]] -> 1 | I48: 0 | J48: 2.74 | K48: =Tabla13[[#This Row],[ud2]] -> Kg
A49: CALABACÍN | B49: 1 | C49: Kg | D49: 1.04 | E49: =Tabla13[[#This Row],[Ud]] -> Kg | F49: 1 | G49: 0.95 | H49: =Tabla13[[#This Row],[Neto]]/Tabla13[[#This Row],[Bruto]] -> 0.95 | I49: 0.05 | J49: 1.04 | K49: =Tabla13[[#This Row],[ud2]] -> Kg
A50: CALABAZA | B50: 1 | C50: Kg | D50: 1.04 | E50: =Tabla13[[#This Row],[Ud]] -> Kg | F50: 1 | G50: 0.85 | H50: =Tabla13[[#This Row],[Neto]]/Tabla13[[#This Row],[Bruto]] -> 0.85 | I50: 0.15 | J50: 1.04 | K50: =Tabla13[[#This Row],[ud2]] -> Kg
A51: CALAMAR CONGELADO, TUBO | B51: 1 | C51: KG | D51: 6.5 | E51: =Tabla13[[#This Row],[Ud]] -> KG | F51: 1 | G51: 1 | H51: =G51/F51 -> 1 | I51: 0 | J51: 6.5 | K51: =Tabla13[[#This Row],[ud2]] -> KG
A52: CALLOS | B52: 1 | C52: Kg | D52: 4.8 | E52: =Tabla13[[#This Row],[Ud]] -> Kg | F52: 1 | G52: 1 | H52: =Tabla13[[#This Row],[Neto]]/Tabla13[[#This Row],[Bruto]] -> 1 | I52: 0 | J52: 4.8 | K52: =Tabla13[[#This Row],[ud2]] -> Kg
A53: CANELA EN RAMA | B53: 0.3 | C53: Kg | D53: 7.74 | E53: =Tabla13[[#This Row],[Ud]] -> Kg | F53: 1 | G53: 1 | H53: =Tabla13[[#This Row],[Neto]]/Tabla13[[#This Row],[Bruto]] -> 1 | I53: 0 | J53: 25.8 | K53: =Tabla13[[#This Row],[ud2]] -> Kg
A54: CANELA MOLIDA | B54: 0.852 | C54: Kg | D54: 3.584 | E54: =Tabla13[[#This Row],[Ud]] -> Kg | F54: 1 | G54: 1 | H54: =Tabla13[[#This Row],[Neto]]/Tabla13[[#This Row],[Bruto]] -> 1 | I54: 0 | J54: 4.20657277 | K54: =Tabla13[[#This Row],[ud2]] -> Kg
A55: CANELONES | B55: 120 | C55: Ud | D55: 7.115 | E55: =Tabla13[[#This Row],[Ud]] -> Ud | F55: 1 | G55: 1 | H55: =Tabla13[[#This Row],[Neto]]/Tabla13[[#This Row],[Bruto]] -> 1 | I55: 0 | J55: 0.05929166667 | K55: =Tabla13[[#This Row],[ud2]] -> Ud
A56: CANÓNIGOS | B56: 0.12 | C56: Kg | D56: 1.29 | E56: =Tabla13[[#This Row],[Ud]] -> Kg | F56: 1 | G56: 1 | H56: =Tabla13[[#This Row],[Neto]]/Tabla13[[#This Row],[Bruto]] -> 1 | I56: 0 | J56: 10.75 | K56: =Tabla13[[#This Row],[ud2]] -> Kg
A57: CANÓNIGOS | B57: 1 | C57: BOLSA | D57: 1.725 | E57: =Tabla13[[#This Row],[Ud]] -> BOLSA | F57: 1 | G57: 1 | H57: =G57/F57 -> 1 | I57: 0 | J57: 1.725 | K57: =Tabla13[[#This Row],[ud2]] -> BOLSA
A58: CANUTILLOS DE CHOCOLATE | B58: 0.1 | C58: Kg | D58: 0.96 | E58: =Tabla13[[#This Row],[Ud]] -> Kg | F58: 1 | G58: 1 | H58: =Tabla13[[#This Row],[Neto]]/Tabla13[[#This Row],[Bruto]] -> 1 | I58: 0 | J58: 9.6 | K58: =Tabla13[[#This Row],[ud2]] -> Kg
A59: CARACOLES CONGELADOS | B59: 0.45 | C59: Kg | D59: 3 | E59: =Tabla13[[#This Row],[Ud]] -> Kg | F59: 1 | G59: 1 | H59: =Tabla13[[#This Row],[Neto]]/Tabla13[[#This Row],[Bruto]] -> 1 | I59: 0 | J59: 6.666666667 | K59: =Tabla13[[#This Row],[ud2]] -> Kg
A60: CARAMELO LÍQUIDO | B60: 0.4 | C60: Kg | D60: 1.79 | E60: =Tabla13[[#This Row],[Ud]] -> Kg | F60: 1 | G60: 1 | H60: =Tabla13[[#This Row],[Neto]]/Tabla13[[#This Row],[Bruto]] -> 1 | I60: 0 | J60: 4.475 | K60: =Tabla13[[#This Row],[ud2]] -> Kg
A61: CARCASAS DE POLO | B61: 1 | C61: Kg | D61: 0.45 | E61: =Tabla13[[#This Row],[Ud]] -> Kg | F61: 1 | G61: 0.9 | H61: =Tabla13[[#This Row],[Neto]]/Tabla13[[#This Row],[Bruto]] -> 0.9 | I61: 0.1 | J61: 0.45 | K61: =Tabla13[[#This Row],[ud2]] -> Kg
A62: CARIOCAS | B62: 1 | C62: Kg | D62: 5.25 | E62: =Tabla13[[#This Row],[Ud]] -> Kg | F62: 1 | G62: 1 | H62: =Tabla13[[#This Row],[Neto]]/Tabla13[[#This Row],[Bruto]] -> 1 | I62: 0 | J62: 5.25 | K62: =Tabla13[[#This Row],[ud2]] -> Kg
A63: CARNE PICADA CERDO | B63: 1 | C63: Kg | D63: 4.03 | E63: =Tabla13[[#This Row],[Ud]] -> Kg | F63: 1 | G63: 1 | H63: =Tabla13[[#This Row],[Neto]]/Tabla13[[#This Row],[Bruto]] -> 1 | I63: 0 | J63: 4.03 | K63: =Tabla13[[#This Row],[ud2]] -> Kg
A64: CARNE PICADA MIXTA | B64: 1 | C64: Kg | D64: 5.04 | E64: =Tabla13[[#This Row],[Ud]] -> Kg | F64: 1 | G64: 1 | H64: =Tabla13[[#This Row],[Neto]]/Tabla13[[#This Row],[Bruto]] -> 1 | I64: 0 | J64: 5.04 | K64: =Tabla13[[#This Row],[ud2]] -> Kg
A65: CARNE PICADA TERNERA | B65: 1 | C65: Kg | D65: 6.01 | E65: =Tabla13[[#This Row],[Ud]] -> Kg | F65: 1 | G65: 1 | H65: =Tabla13[[#This Row],[Neto]]/Tabla13[[#This Row],[Bruto]] -> 1 | I65: 0 | J65: 6.01 | K65: =Tabla13[[#This Row],[ud2]] -> Kg
A66: CARRILLERAS DE CERDO | B66: 1 | C66: Kg | D66: 7.58 | E66: =Tabla13[[#This Row],[Ud]] -> Kg | F66: 1 | G66: 0.85 | H66: =Tabla13[[#This Row],[Neto]]/Tabla13[[#This Row],[Bruto]] -> 0.85 | I66: 0.15 | J66: 7.58 | K66: =Tabla13[[#This Row],[ud2]] -> Kg
A67: CARRILLERAS DE CERDO IBÉRICO CONGELADAS | B67: 1 | C67: Kg | D67: 5.35 | E67: =Tabla13[[#This Row],[Ud]] -> Kg | F67: 1 | G67: 0.85 | H67: =Tabla13[[#This Row],[Neto]]/Tabla13[[#This Row],[Bruto]] -> 0.85 | I67: 0.15 | J67: 5.35 | K67: =Tabla13[[#This Row],[ud2]] -> Kg
A68: CARRILLERAS DE TERNERA | B68: 1 | C68: Kg | D68: 9.54 | E68: =Tabla13[[#This Row],[Ud]] -> Kg | F68: 1 | G68: 0.9 | H68: =Tabla13[[#This Row],[Neto]]/Tabla13[[#This Row],[Bruto]] -> 0.9 | I68: 0.1 | J68: 9.54 | K68: =Tabla13[[#This Row],[ud2]] -> Kg
A69: CASTAÑAS | B69: 1 | C69: Kg | D69: =(1.56+1.456)/2 -> 1.508 | E69: =Tabla13[[#This Row],[Ud]] -> Kg | F69: 1 | G69: 0.9 | H69: =Tabla13[[#This Row],[Neto]]/Tabla13[[#This Row],[Bruto]] -> 0.9 | I69: 0.1 | J69: 1.508 | K69: =Tabla13[[#This Row],[ud2]] -> Kg
A70: CASTAÑAS CONGELADAS | B70: 1 | C70: Kg | D70: 4.992 | E70: =Tabla13[[#This Row],[Ud]] -> Kg | F70: 1 | G70: 1 | H70: =Tabla13[[#This Row],[Neto]]/Tabla13[[#This Row],[Bruto]] -> 1 | I70: 0 | J70: 4.992 | K70: =Tabla13[[#This Row],[ud2]] -> Kg
A71: CASTAÑETA | B71: 1 | C71: Kg | D71: 6.42 | E71: =Tabla13[[#This Row],[Ud]] -> Kg | F71: 1 | G71: 0.7 | H71: =Tabla13[[#This Row],[Neto]]/Tabla13[[#This Row],[Bruto]] -> 0.7 | I71: =1-H71 -> 0.3 | J71: =(1*D71)/B71 -> 6.42 | K71: =Tabla13[[#This Row],[ud2]] -> Kg
A72: CAVI-ART, SUCEDÁNEO | B72: 0.075 | C72: Kg | D72: 2 | E72: =Tabla13[[#This Row],[Ud]] -> Kg | F72: 1 | G72: 1 | H72: =Tabla13[[#This Row],[Neto]]/Tabla13[[#This Row],[Bruto]] -> 1 | I72: 0 | J72: 26.66666667 | K72: =Tabla13[[#This Row],[ud2]] -> Kg
A73: CAYENA | B73: 0.017 | C73: Kg | D73: 0.85 | E73: =Tabla13[[#This Row],[Ud]] -> Kg | F73: 1 | G73: 1 | H73: =Tabla13[[#This Row],[Neto]]/Tabla13[[#This Row],[Bruto]] -> 1 | I73: 0 | J73: 50 | K73: =Tabla13[[#This Row],[ud2]] -> Kg
A74: CEBOLLA | B74: 1 | C74: Kg | D74: 1.29 | E74: =Tabla13[[#This Row],[Ud]] -> Kg | F74: 1 | G74: 0.9 | H74: =Tabla13[[#This Row],[Neto]]/Tabla13[[#This Row],[Bruto]] -> 0.9 | I74: 0.1 | J74: 1.29 | K74: =Tabla13[[#This Row],[ud2]] -> Kg
A75: CEBOLLA FRANCESA | B75: 1 | C75: Kg | D75: 2.3 | E75: =Tabla13[[#This Row],[Ud]] -> Kg | F75: 1 | G75: 0.9 | H75: =Tabla13[[#This Row],[Neto]]/Tabla13[[#This Row],[Bruto]] -> 0.9 | I75: 0.1 | J75: 2.3 | K75: =Tabla13[[#This Row],[ud2]] -> Kg
A76: CEBOLLA ROJA | B76: 1 | C76: Kg | D76: 1.69 | E76: =Tabla13[[#This Row],[Ud]] -> Kg | F76: 1 | G76: 0.9 | H76: =Tabla13[[#This Row],[Neto]]/Tabla13[[#This Row],[Bruto]] -> 0.9 | I76: 0.1 | J76: 1.69 | K76: =Tabla13[[#This Row],[ud2]] -> Kg
A77: CEBOLLETA | B77: 0.18 | C77: Kg | D77: 0.93 | E77: =Tabla13[[#This Row],[Ud]] -> Kg | F77: 1 | G77: 0.8 | H77: =Tabla13[[#This Row],[Neto]]/Tabla13[[#This Row],[Bruto]] -> 0.8 | I77: 0.2 | J77: 5.166666667 | K77: =Tabla13[[#This Row],[ud2]] -> Kg
A78: CEBOLLINO | B78: 0.02 | C78: Kg | D78: 1.86 | E78: =Tabla13[[#This Row],[Ud]] -> Kg | F78: 1 | G78: 1 | H78: =Tabla13[[#This Row],[Neto]]/Tabla13[[#This Row],[Bruto]] -> 1 | I78: 0 | J78: 93 | K78: =Tabla13[[#This Row],[ud2]] -> Kg
A79: CECINA | B79: 1 | C79: Kg | D79: 26.2 | E79: =Tabla13[[#This Row],[Ud]] -> Kg | F79: 1 | G79: 1 | H79: =Tabla13[[#This Row],[Neto]]/Tabla13[[#This Row],[Bruto]] -> 1 | I79: 0 | J79: 26.2 | K79: =Tabla13[[#This Row],[ud2]] -> Kg
A80: CENTOLLA GALLEGA | B80: 1 | C80: Ud | D80: 7.02 | E80: =Tabla13[[#This Row],[Ud]] -> Ud | F80: 1 | G80: 1 | H80: =Tabla13[[#This Row],[Neto]]/Tabla13[[#This Row],[Bruto]] -> 1 | I80: 0 | J80: 7.02 | K80: =Tabla13[[#This Row],[ud2]] -> Ud
A81: CENTOLLO | B81: 1 | C81: Ud | D81: 9.18 | E81: =Tabla13[[#This Row],[Ud]] -> Ud | F81: 1 | G81: 1 | H81: =Tabla13[[#This Row],[Neto]]/Tabla13[[#This Row],[Bruto]] -> 1 | I81: 0 | J81: 9.18 | K81: =Tabla13[[#This Row],[ud2]] -> Ud
A82: CEREZAS CONFITADAS | B82: 1 | C82: Kg | D82: 7.062 | E82: =Tabla13[[#This Row],[Ud]] -> Kg | F82: 1 | G82: 1 | H82: =Tabla13[[#This Row],[Neto]]/Tabla13[[#This Row],[Bruto]] -> 1 | I82: 0 | J82: 7.062 | K82: =Tabla13[[#This Row],[ud2]] -> Kg
A83: CHALOTA | B83: 1 | C83: Kg | D83: 0.89 | E83: =Tabla13[[#This Row],[Ud]] -> Kg | F83: 1 | G83: 0.9 | H83: =Tabla13[[#This Row],[Neto]]/Tabla13[[#This Row],[Bruto]] -> 0.9 | I83: 0.1 | J83: 0.89 | K83: =Tabla13[[#This Row],[ud2]] -> Kg
A84: CHAMPIÑONES | B84: 1 | C84: kg | D84: 3.11 | E84: =Tabla13[[#This Row],[Ud]] -> kg | F84: 1 | G84: 0.9 | H84: =Tabla13[[#This Row],[Neto]]/Tabla13[[#This Row],[Bruto]] -> 0.9 | I84: 0.1 | J84: 3.11 | K84: =Tabla13[[#This Row],[ud2]] -> kg
A85: CHAPATA SIN GLUTEN | B85: 0.19 | C85: Kg | D85: 1.75 | E85: =Tabla13[[#This Row],[Ud]] -> Kg | F85: 1 | G85: 1 | H85: =Tabla13[[#This Row],[Neto]]/Tabla13[[#This Row],[Bruto]] -> 1 | I85: 0 | J85: 9.210526316 | K85: =Tabla13[[#This Row],[ud2]] -> Kg
A86: CHICHARONES DE CERDO | B86: 1 | C86: Kg | D86: 6.5 | E86: =Tabla13[[#This Row],[Ud]] -> Kg | F86: 1 | G86: 1 | H86: =Tabla13[[#This Row],[Neto]]/Tabla13[[#This Row],[Bruto]] -> 1 | I86: 0 | J86: 6.5 | K86: =Tabla13[[#This Row],[ud2]] -> Kg
A87: CHIPIRÓN | B87: 1 | C87: Kg | D87: 4 | E87: =Tabla13[[#This Row],[Ud]] -> Kg | F87: 1 | G87: 0.65 | H87: =Tabla13[[#This Row],[Neto]]/Tabla13[[#This Row],[Bruto]] -> 0.65 | I87: 0.35 | J87: 4 | K87: =Tabla13[[#This Row],[ud2]] -> Kg
A88: CHIPIRÓN CONGELADO | B88: 1 | C88: Kg | D88: 6.5 | E88: =Tabla13[[#This Row],[Ud]] -> Kg | F88: 1 | G88: 0.5 | H88: =Tabla13[[#This Row],[Neto]]/Tabla13[[#This Row],[Bruto]] -> 0.5 | I88: 0.5 | J88: 6.5 | K88: =Tabla13[[#This Row],[ud2]] -> Kg
A89: CHOCOLATE A LA TAZA | B89: 0.5 | C89: Kg | D89: 1.16 | E89: =Tabla13[[#This Row],[Ud]] -> Kg | F89: 1 | G89: 1 | H89: =Tabla13[[#This Row],[Neto]]/Tabla13[[#This Row],[Bruto]] -> 1 | I89: 0 | J89: 2.32 | K89: =Tabla13[[#This Row],[ud2]] -> Kg
A90: CHULETERO DE TERNERA | B90: 1 | C90: Kg | D90: 10.35 | E90: =Tabla13[[#This Row],[Ud]] -> Kg | F90: 1 | G90: 0.8 | H90: =Tabla13[[#This Row],[Neto]]/Tabla13[[#This Row],[Bruto]] -> 0.8 | I90: 0.2 | J90: 10.35 | K90: =Tabla13[[#This Row],[ud2]] -> Kg
A91: CORDERO CONGELADO | B91: 11 | C91: Kg | D91: 7.92 | E91: =Tabla13[[#This Row],[Ud]] -> Kg | F91: 1 | G91: 1 | H91: =Tabla13[[#This Row],[Neto]]/Tabla13[[#This Row],[Bruto]] -> 1 | I91: 0 | J91: 0.72 | K91: =Tabla13[[#This Row],[ud2]] -> Kg
A92: CUAJADA | B92: 0.048 | C92: Gr | D92: 0.96 | E92: =Tabla13[[#This Row],[Ud]] -> Gr | F92: 1 | G92: 1 | H92: =Tabla13[[#This Row],[Neto]]/Tabla13[[#This Row],[Bruto]] -> 1 | I92: 0 | J92: 20 | K92: =Tabla13[[#This Row],[ud2]] -> Gr
A93: FAISAN CONGELADO | B93: 1 | C93: Kg | D93: 10.165 | E93: =Tabla13[[#This Row],[Ud]] -> Kg | F93: 1 | G93: 0.8 | H93: =Tabla13[[#This Row],[Neto]]/Tabla13[[#This Row],[Bruto]] -> 0.8 | I93: 0.2 | J93: 10.165 | K93: =Tabla13[[#This Row],[ud2]] -> Kg
A94: FALDA TERNERA S/ HUESO | B94: 1 | C94: Kg | D94: 5.1 | E94: =Tabla13[[#This Row],[Ud]] -> Kg | F94: 1 | G94: 0.9 | H94: =Tabla13[[#This Row],[Neto]]/Tabla13[[#This Row],[Bruto]] -> 0.9 | I94: 0.1 | J94: 5.1 | K94: =Tabla13[[#This Row],[ud2]] -> Kg
A95: FIDEO ARROZ | B95: 0.25 | C95: Kg | D95: 2.1 | E95: =Tabla13[[#This Row],[Ud]] -> Kg | F95: 1 | G95: 1 | H95: =Tabla13[[#This Row],[Neto]]/Tabla13[[#This Row],[Bruto]] -> 1 | I95: 0 | J95: 8.4 | K95: =Tabla13[[#This Row],[ud2]] -> Kg
A96: FIDEO CHINO | B96: 0.25 | C96: Kg | D96: 0.99 | E96: =Tabla13[[#This Row],[Ud]] -> Kg | F96: 1 | G96: 1 | H96: =Tabla13[[#This Row],[Neto]]/Tabla13[[#This Row],[Bruto]] -> 1 | I96: 0 | J96: 3.96 | K96: =Tabla13[[#This Row],[ud2]] -> Kg
A97: FIDEO FIDEUÁ | B97: 0.5 | C97: Kg | D97: 0.79 | E97: =Tabla13[[#This Row],[Ud]] -> Kg | F97: 1 | G97: 1 | H97: =Tabla13[[#This Row],[Neto]]/Tabla13[[#This Row],[Bruto]] -> 1 | I97: 0 | J97: 1.58 | K97: =Tabla13[[#This Row],[ud2]] -> Kg
A98: FIDEO FINO | B98: 0.25 | C98: Kg | D98: 0.57 | E98: =Tabla13[[#This Row],[Ud]] -> Kg | F98: 1 | G98: 1 | H98: =Tabla13[[#This Row],[Neto]]/Tabla13[[#This Row],[Bruto]] -> 1 | I98: 0 | J98: 2.28 | K98: =Tabla13[[#This Row],[ud2]] -> Kg
A99: FIDEO GORDO | B99: 0.5 | C99: Kg | D99: 0.42 | E99: =Tabla13[[#This Row],[Ud]] -> Kg | F99: 1 | G99: 1 | H99: =Tabla13[[#This Row],[Neto]]/Tabla13[[#This Row],[Bruto]] -> 1 | I99: 0 | J99: 0.84 | K99: =Tabla13[[#This Row],[ud2]] -> Kg
A100: FILETE DE MERLUZA | B100: 1 | C100: Kg | D100: 4.86 | E100: =Tabla13[[#This Row],[Ud]] -> Kg | F100: 1 | G100: 0.9 | H100: =Tabla13[[#This Row],[Neto]]/Tabla13[[#This Row],[Bruto]] -> 0.9 | I100: 0.1 | J100: 4.86 | K100: =Tabla13[[#This Row],[ud2]] -> Kg
A101: FILETE DE TERNERA | B101: 1 | C101: Kg | D101: 8.03 | E101: =Tabla13[[#This Row],[Ud]] -> Kg | F101: 1 | G101: 1 | H101: =Tabla13[[#This Row],[Neto]]/Tabla13[[#This Row],[Bruto]] -> 1 | I101: 0 | J101: 8.03 | K101: =Tabla13[[#This Row],[ud2]] -> Kg
A102: FOIE DE PATO | B102: 0.73 | C102: Kg | D102: 24.21 | E102: =Tabla13[[#This Row],[Ud]] -> Kg | F102: 1 | G102: 1 | H102: =Tabla13[[#This Row],[Neto]]/Tabla13[[#This Row],[Bruto]] -> 1 | I102: 0 | J102: 33.16438356 | K102: =Tabla13[[#This Row],[ud2]] -> Kg
A103: FOIE-GRASS | B103: 0.115 | C103: Kg | D103: 1.28 | E103: =Tabla13[[#This Row],[Ud]] -> Kg | F103: 1 | G103: 1 | H103: =Tabla13[[#This Row],[Neto]]/Tabla13[[#This Row],[Bruto]] -> 1 | I103: 0 | J103: 11.13043478 | K103: =Tabla13[[#This Row],[ud2]] -> Kg
A104: FRAMBUESA | B104: 0.125 | C104: Kg | D104: 3.536 | E104: =Tabla13[[#This Row],[Ud]] -> Kg | F104: 1 | G104: 1 | H104: =Tabla13[[#This Row],[Neto]]/Tabla13[[#This Row],[Bruto]] -> 1 | I104: 0 | J104: 28.288 | K104: =Tabla13[[#This Row],[ud2]] -> Kg
A105: FRAMBUESA CONGELADA | B105: 1 | C105: Kg | D105: 10.267 | E105: =Tabla13[[#This Row],[Ud]] -> Kg | F105: 1 | G105: 1 | H105: =Tabla13[[#This Row],[Neto]]/Tabla13[[#This Row],[Bruto]] -> 1 | I105: 0 | J105: 10.267 | K105: =Tabla13[[#This Row],[ud2]] -> Kg
A106: FRAMBUESA LIOFILIZADA | B106: 0.5 | C106: Kg | D106: 41.256 | E106: =Tabla13[[#This Row],[Ud]] -> Kg | F106: 1 | G106: 1 | H106: =Tabla13[[#This Row],[Neto]]/Tabla13[[#This Row],[Bruto]] -> 1 | I106: 0 | J106: 82.512 | K106: =Tabla13[[#This Row],[ud2]] -> Kg
A107: FRESÓN | B107: 1 | C107: Kg | D107: 4.2 | E107: =Tabla13[[#This Row],[Ud]] -> Kg | F107: 1 | G107: 1 | H107: =Tabla13[[#This Row],[Neto]]/Tabla13[[#This Row],[Bruto]] -> 1 | I107: 0 | J107: 4.2 | K107: =Tabla13[[#This Row],[ud2]] -> Kg
A108: FRUCTOSA | B108: 0.25 | C108: Kg | D108: 2.1 | E108: =Tabla13[[#This Row],[Ud]] -> Kg | F108: 1 | G108: 1 | H108: =Tabla13[[#This Row],[Neto]]/Tabla13[[#This Row],[Bruto]] -> 1 | I108: 0 | J108: 8.4 | K108: =Tabla13[[#This Row],[ud2]] -> Kg
A109: FRUTA DE LA PASIÓN | B109: 1 | C109: Kg | D109: 1.768 | E109: =Tabla13[[#This Row],[Ud]] -> Kg | F109: 1 | G109: 1 | H109: =Tabla13[[#This Row],[Neto]]/Tabla13[[#This Row],[Bruto]] -> 1 | I109: 0 | J109: 1.768 | K109: =Tabla13[[#This Row],[ud2]] -> Kg
A110: FRUTAS ESCARCHADAS | B110: 1.5 | C110: Kg | D110: 16.999 | E110: =Tabla13[[#This Row],[Ud]] -> Kg | F110: 1 | G110: 1 | H110: =Tabla13[[#This Row],[Neto]]/Tabla13[[#This Row],[Bruto]] -> 1 | I110: 0 | J110: 11.33266667 | K110: =Tabla13[[#This Row],[ud2]] -> Kg
A111: FRUTOS DEL BOSQUE CONGELADOS | B111: 2.5 | C111: Kg | D111: 6.304 | E111: =Tabla13[[#This Row],[Ud]] -> Kg | F111: 1 | G111: 1 | H111: =Tabla13[[#This Row],[Neto]]/Tabla13[[#This Row],[Bruto]] -> 1 | I111: 0 | J111: 2.5216 | K111: =Tabla13[[#This Row],[ud2]] -> Kg
A112: GALLINA FRESCA | B112: 1.045 | C112: Kg | D112: 2.35 | E112: =Tabla13[[#This Row],[Ud]] -> Kg | F112: 1 | G112: 0.85 | H112: =Tabla13[[#This Row],[Neto]]/Tabla13[[#This Row],[Bruto]] -> 0.85 | I112: 0.15 | J112: 2.248803828 | K112: =Tabla13[[#This Row],[ud2]] -> Kg
A113: GALLO FRESCO | B113: 0.4 | C113: Kg | D113: 10.26 | E113: =Tabla13[[#This Row],[Ud]] -> Kg | F113: 1 | G113: 0.8 | H113: =Tabla13[[#This Row],[Neto]]/Tabla13[[#This Row],[Bruto]] -> 0.8 | I113: 0.2 | J113: 25.65 | K113: =Tabla13[[#This Row],[ud2]] -> Kg
A114: GAMBA PELADA | B114: 1 | C114: Kg | D114: =(6.955+6.152)/2 -> 6.5535 | E114: =Tabla13[[#This Row],[Ud]] -> Kg | F114: 1 | G114: 1 | H114: =Tabla13[[#This Row],[Neto]]/Tabla13[[#This Row],[Bruto]] -> 1 | I114: 0 | J114: 6.5535 | K114: =Tabla13[[#This Row],[ud2]] -> Kg
A115: GAMBAS | B115: 1 | C115: Kg | D115: 12.79 | E115: =Tabla13[[#This Row],[Ud]] -> Kg | F115: 1 | G115: 1 | H115: =Tabla13[[#This Row],[Neto]]/Tabla13[[#This Row],[Bruto]] -> 1 | I115: 0 | J115: 12.79 | K115: =Tabla13[[#This Row],[ud2]] -> Kg
A116: GAMBÓN | B116: 1 | C116: Kg | D116: 7.128 | E116: =Tabla13[[#This Row],[Ud]] -> Kg | F116: 1 | G116: 1 | H116: =Tabla13[[#This Row],[Neto]]/Tabla13[[#This Row],[Bruto]] -> 1 | I116: 0 | J116: 7.128 | K116: =Tabla13[[#This Row],[ud2]] -> Kg
A117: GARBANZO | B117: 1 | C117: Kg | D117: 2.48 | E117: =Tabla13[[#This Row],[Ud]] -> Kg | F117: 1 | G117: 1 | H117: =Tabla13[[#This Row],[Neto]]/Tabla13[[#This Row],[Bruto]] -> 1 | I117: 0 | J117: 2.48 | K117: =Tabla13[[#This Row],[ud2]] -> Kg
A118: GARBANZO CONSERVA | B118: 0.4 | C118: Kg | D118: 0.42 | E118: =Tabla13[[#This Row],[Ud]] -> Kg | F118: 1 | G118: 1 | H118: =Tabla13[[#This Row],[Neto]]/Tabla13[[#This Row],[Bruto]] -> 1 | I118: 0 | J118: 1.05 | K118: =Tabla13[[#This Row],[ud2]] -> Kg
A119: GRANADA | B119: 1 | C119: Kg | D119: 1.872 | E119: =Tabla13[[#This Row],[Ud]] -> Kg | F119: 1 | G119: 1 | H119: =Tabla13[[#This Row],[Neto]]/Tabla13[[#This Row],[Bruto]] -> 1 | I119: 0 | J119: 1.872 | K119: =Tabla13[[#This Row],[ud2]] -> Kg
A120: GRANILLO ALMENDRA | B120: 5 | C120: Kg | D120: 4.992 | E120: =Tabla13[[#This Row],[Ud]] -> Kg | F120: 1 | G120: 1 | H120: =Tabla13[[#This Row],[Neto]]/Tabla13[[#This Row],[Bruto]] -> 1 | I120: 0 | J120: 0.9984 | K120: =Tabla13[[#This Row],[ud2]] -> Kg
A121: GROSELLAS | B121: 0.15 | C121: Kg | D121: 3.952 | E121: =Tabla13[[#This Row],[Ud]] -> Kg | F121: 1 | G121: 1 | H121: =Tabla13[[#This Row],[Neto]]/Tabla13[[#This Row],[Bruto]] -> 1 | I121: 0 | J121: 26.34666667 | K121: =Tabla13[[#This Row],[ud2]] -> Kg
A122: GUINDILLA | B122: 0.08 | C122: Kg | D122: 1.56 | E122: =Tabla13[[#This Row],[Ud]] -> Kg | F122: 1 | G122: 1 | H122: =Tabla13[[#This Row],[Neto]]/Tabla13[[#This Row],[Bruto]] -> 1 | I122: 0 | J122: 19.5 | K122: =Tabla13[[#This Row],[ud2]] -> Kg
A123: HABA NEGRA | B123: 0.5 | C123: Kg | D123: 0.96 | E123: =Tabla13[[#This Row],[Ud]] -> Kg | F123: 1 | G123: 1 | H123: =Tabla13[[#This Row],[Neto]]/Tabla13[[#This Row],[Bruto]] -> 1 | I123: 0 | J123: 1.92 | K123: =Tabla13[[#This Row],[ud2]] -> Kg
A124: HABA PINTA | B124: 1 | C124: Kg | D124: 2.65 | E124: =Tabla13[[#This Row],[Ud]] -> Kg | F124: 1 | G124: 1 | H124: =Tabla13[[#This Row],[Neto]]/Tabla13[[#This Row],[Bruto]] -> 1 | I124: 0 | J124: 2.65 | K124: =Tabla13[[#This Row],[ud2]] -> Kg
A125: HABA ROJA | B125: 0.5 | C125: Kg | D125: 0.95 | E125: =Tabla13[[#This Row],[Ud]] -> Kg | F125: 1 | G125: 1 | H125: =Tabla13[[#This Row],[Neto]]/Tabla13[[#This Row],[Bruto]] -> 1 | I125: 0 | J125: 1.9 | K125: =Tabla13[[#This Row],[ud2]] -> Kg
A126: HABAS | B126: 0.5 | C126: Kg | D126: 2.07 | E126: =Tabla13[[#This Row],[Ud]] -> Kg | F126: 1 | G126: 1 | H126: =Tabla13[[#This Row],[Neto]]/Tabla13[[#This Row],[Bruto]] -> 1 | I126: 0 | J126: 4.14 | K126: =Tabla13[[#This Row],[ud2]] -> Kg
A127: HAMBURGUESA MIXTA | B127: 1 | C127: Kg | D127: 5.45 | E127: =Tabla13[[#This Row],[Ud]] -> Kg | F127: 1 | G127: 1 | H127: =Tabla13[[#This Row],[Neto]]/Tabla13[[#This Row],[Bruto]] -> 1 | I127: 0 | J127: 5.45 | K127: =Tabla13[[#This Row],[ud2]] -> Kg
A128: HARINA | B128: 1 | C128: Kg | D128: 0.45 | E128: =Tabla13[[#This Row],[Ud]] -> Kg | F128: 1 | G128: 1 | H128: =Tabla13[[#This Row],[Neto]]/Tabla13[[#This Row],[Bruto]] -> 1 | I128: 0 | J128: 0.45 | K128: =Tabla13[[#This Row],[ud2]] -> Kg
A129: HARINA DE ALMENDRA | B129: 10 | C129: Kg | D129: 4.826 | E129: =Tabla13[[#This Row],[Ud]] -> Kg | F129: 1 | G129: 1 | H129: =Tabla13[[#This Row],[Neto]]/Tabla13[[#This Row],[Bruto]] -> 1 | I129: 0 | J129: 0.4826 | K129: =Tabla13[[#This Row],[ud2]] -> Kg
A130: HARINA DE CASTAÑA | B130: 0.4 | C130: Kg | D130: 2.6 | E130: =Tabla13[[#This Row],[Ud]] -> Kg | F130: 1 | G130: 1 | H130: =Tabla13[[#This Row],[Neto]]/Tabla13[[#This Row],[Bruto]] -> 1 | I130: 0 | J130: 6.5 | K130: =Tabla13[[#This Row],[ud2]] -> Kg
A131: HARINA DE CENTENO | B131: 1 | C131: Kg | D131: 0.5096 | E131: =Tabla13[[#This Row],[Ud]] -> Kg | F131: 1 | G131: 1 | H131: =Tabla13[[#This Row],[Neto]]/Tabla13[[#This Row],[Bruto]] -> 1 | I131: 0 | J131: 0.5096 | K131: =Tabla13[[#This Row],[ud2]] -> Kg
A132: HARINA DE FUERZA | B132: 1 | C132: Kg | D132: 0.5616 | E132: =Tabla13[[#This Row],[Ud]] -> Kg | F132: 1 | G132: 1 | H132: =Tabla13[[#This Row],[Neto]]/Tabla13[[#This Row],[Bruto]] -> 1 | I132: 0 | J132: 0.5616 | K132: =Tabla13[[#This Row],[ud2]] -> Kg
A133: HARINA DE MAIZ | B133: 1 | C133: Kg | D133: 1.93 | E133: =Tabla13[[#This Row],[Ud]] -> Kg | F133: 1 | G133: 1 | H133: =Tabla13[[#This Row],[Neto]]/Tabla13[[#This Row],[Bruto]] -> 1 | I133: 0 | J133: 1.93 | K133: =Tabla13[[#This Row],[ud2]] -> Kg
A134: HARINA DE TEMPURA | B134: 0.5 | C134: Kg | D134: 1.45 | E134: =Tabla13[[#This Row],[Ud]] -> Kg | F134: 1 | G134: 1 | H134: =Tabla13[[#This Row],[Neto]]/Tabla13[[#This Row],[Bruto]] -> 1 | I134: 0 | J134: 2.9 | K134: =Tabla13[[#This Row],[ud2]] -> Kg
A135: HARINA DE TRIGO | B135: 0.5 | C135: Kg | D135: 2.45 | E135: =Tabla13[[#This Row],[Ud]] -> Kg | F135: 1 | G135: 1 | H135: =Tabla13[[#This Row],[Neto]]/Tabla13[[#This Row],[Bruto]] -> 1 | I135: =1-H135 -> 0 | J135: =(1*D135)/B135 -> 4.9 | K135: =Tabla13[[#This Row],[ud2]] -> Kg
A136: HARINA DEL PAÍS | B136: 40 | C136: Kg | D136: 54.08 | E136: =Tabla13[[#This Row],[Ud]] -> Kg | F136: 1 | G136: 1 | H136: =Tabla13[[#This Row],[Neto]]/Tabla13[[#This Row],[Bruto]] -> 1 | I136: 0 | J136: 1.352 | K136: =Tabla13[[#This Row],[ud2]] -> Kg
A137: HARINA GRAN FUERZA | B137: 1 | C137: Kg | D137: 0.624 | E137: =Tabla13[[#This Row],[Ud]] -> Kg | F137: 1 | G137: 1 | H137: =Tabla13[[#This Row],[Neto]]/Tabla13[[#This Row],[Bruto]] -> 1 | I137: 0 | J137: 0.624 | K137: =Tabla13[[#This Row],[ud2]] -> Kg
A138: HARINA INTEGRAL | B138: 1 | C138: Kg | D138: 0.38 | E138: =Tabla13[[#This Row],[Ud]] -> Kg | F138: 1 | G138: 1 | H138: =Tabla13[[#This Row],[Neto]]/Tabla13[[#This Row],[Bruto]] -> 1 | I138: 0 | J138: 0.38 | K138: =Tabla13[[#This Row],[ud2]] -> Kg
A139: HARINA SIN GLUTEN | B139: 1 | C139: Kg | D139: 3.09 | E139: =Tabla13[[#This Row],[Ud]] -> Kg | F139: 1 | G139: 1 | H139: =Tabla13[[#This Row],[Neto]]/Tabla13[[#This Row],[Bruto]] -> 1 | I139: 0 | J139: 3.09 | K139: =Tabla13[[#This Row],[ud2]] -> Kg
A140: HELICES VEGETALES | B140: 0.5 | C140: Kg | D140: 0.96 | E140: =Tabla13[[#This Row],[Ud]] -> Kg | F140: 1 | G140: 1 | H140: =Tabla13[[#This Row],[Neto]]/Tabla13[[#This Row],[Bruto]] -> 1 | I140: 0 | J140: 1.92 | K140: =Tabla13[[#This Row],[ud2]] -> Kg
A141: HÍGADO DE POLO | B141: 0.45 | C141: Kg | D141: 0.78 | E141: =Tabla13[[#This Row],[Ud]] -> Kg | F141: 1 | G141: 1 | H141: =Tabla13[[#This Row],[Neto]]/Tabla13[[#This Row],[Bruto]] -> 1 | I141: 0 | J141: 1.733333333 | K141: =Tabla13[[#This Row],[ud2]] -> Kg
A142: HINOJO | B142: 0.1 | C142: Kg | D142: 0.89 | E142: =Tabla13[[#This Row],[Ud]] -> Kg | F142: 1 | G142: 1 | H142: =Tabla13[[#This Row],[Neto]]/Tabla13[[#This Row],[Bruto]] -> 1 | I142: 0 | J142: 8.9 | K142: =Tabla13[[#This Row],[ud2]] -> Kg
A143: HOJALDRE CROISSANT | B143: 20 | C143: Kg | D143: 2.289 | E143: =Tabla13[[#This Row],[Ud]] -> Kg | F143: 1 | G143: 1 | H143: =Tabla13[[#This Row],[Neto]]/Tabla13[[#This Row],[Bruto]] -> 1 | I143: 0 | J143: 0.11445 | K143: =Tabla13[[#This Row],[ud2]] -> Kg
A144: HOJALDRE PLACAS | B144: 10 | C144: Kg | D144: 3.542 | E144: =Tabla13[[#This Row],[Ud]] -> Kg | F144: 1 | G144: 1 | H144: =Tabla13[[#This Row],[Neto]]/Tabla13[[#This Row],[Bruto]] -> 1 | I144: 0 | J144: 0.3542 | K144: =Tabla13[[#This Row],[ud2]] -> Kg
A145: HUEVOS | B145: 12 | C145: Und | D145: 2.18 | E145: =Tabla13[[#This Row],[Ud]] -> Und | F145: 1 | G145: 1 | H145: =Tabla13[[#This Row],[Neto]]/Tabla13[[#This Row],[Bruto]] -> 1 | I145: 0 | J145: 0.1816666667 | K145: =Tabla13[[#This Row],[ud2]] -> Und
A146: JAMON | B146: 1 | C146: KG | D146: 7 | E146: =Tabla13[[#This Row],[Ud]] -> KG | F146: 1 | G146: 1 | H146: =G146/F146 -> 1 | I146: 0 | J146: =IF(B146<1,D146/B146,D146/B146) -> 7 | K146: =Tabla13[[#This Row],[ud2]] -> KG
A147: JAMON CENTRO | B147: 1 | C147: KG | D147: 12 | E147: =Tabla13[[#This Row],[Ud]] -> KG | F147: 1 | G147: 1 | H147: =G147/F147 -> 1 | I147: 0 | J147: =IF(B147<1,D147/B147,D147/B147) -> 12 | K147: =Tabla13[[#This Row],[ud2]] -> KG
A148: KETCHUP | B148: 0.3 | C148: Kg | D148: 1.17 | E148: =Tabla13[[#This Row],[Ud]] -> Kg | F148: 1 | G148: 1 | H148: =Tabla13[[#This Row],[Neto]]/Tabla13[[#This Row],[Bruto]] -> 1 | I148: 0 | J148: =(1*D148)/B148 -> 3.9 | K148: =Tabla13[[#This Row],[ud2]] -> Kg
A149: KIWI | B149: 1 | C149: Kg | D149: 2.34 | E149: =Tabla13[[#This Row],[Ud]] -> Kg | F149: 1 | G149: 1 | H149: =Tabla13[[#This Row],[Neto]]/Tabla13[[#This Row],[Bruto]] -> 1 | I149: 0 | J149: =(1*D149)/B149 -> 2.34 | K149: =Tabla13[[#This Row],[ud2]] -> Kg
A150: LACÓN COCIDO TORRE DE NÚÑEZ | B150: 1 | C150: Kg | D150: 3.01 | E150: =Tabla13[[#This Row],[Ud]] -> Kg | F150: 1 | G150: 1 | H150: =G150/F150 -> 1 | I150: 0 | J150: =IF(B150<1,D150/B150,D150/B150) -> 3.01 | K150: =Tabla13[[#This Row],[ud2]] -> Kg
A151: LACÓN CURADO | B151: 1 | C151: Kg | D151: 8.95 | E151: =Tabla13[[#This Row],[Ud]] -> Kg | F151: 1 | G151: 1 | H151: 1 | I151: 0 | J151: 8.95 | K151: =Tabla13[[#This Row],[ud2]] -> Kg
A152: LACÓN DE CERDO FRESCO | B152: 1 | C152: Kg | D152: 3.76 | E152: =Tabla13[[#This Row],[Ud]] -> Kg | F152: 1 | G152: 1 | H152: 1 | I152: 0 | J152: 3.76 | K152: =Tabla13[[#This Row],[ud2]] -> Kg
A153: LACÓN SALADO MONTES | B153: 1 | C153: Kg | D153: 2.95 | E153: =Tabla13[[#This Row],[Ud]] -> Kg | F153: 1 | G153: 1 | H153: 1 | I153: 0 | J153: 2.95 | K153: =Tabla13[[#This Row],[ud2]] -> Kg
A154: LANGOSTA | B154: 1 | C154: Kg | D154: 5.04 | E154: =Tabla13[[#This Row],[Ud]] -> Kg | F154: 1 | G154: 1 | H154: 1 | I154: 0 | J154: 5.04 | K154: =Tabla13[[#This Row],[ud2]] -> Kg
A155: LANGOSTINO 20-30 | B155: 1 | C155: Kg | D155: 15 | E155: =Tabla13[[#This Row],[Ud]] -> Kg | F155: 1 | G155: 1 | H155: 1 | I155: 0 | J155: 15 | K155: =Tabla13[[#This Row],[ud2]] -> Kg
A156: LANGOSTINO 30/40 | B156: 1 | C156: Kg | D156: 16 | E156: =Tabla13[[#This Row],[Ud]] -> Kg | F156: 1 | G156: 1 | H156: 1 | I156: 0 | J156: 16 | K156: =Tabla13[[#This Row],[ud2]] -> Kg
A157: LANGOSTINO 41/50 | B157: 1 | C157: Kg | D157: 14.5 | E157: =Tabla13[[#This Row],[Ud]] -> Kg | F157: 1 | G157: 1 | H157: 1 | I157: 0 | J157: 14.5 | K157: =Tabla13[[#This Row],[ud2]] -> Kg
A158: LAUREL | B158: 1 | C158: bolsa | D158: 0.988 | E158: =Tabla13[[#This Row],[Ud]] -> bolsa | F158: 1 | G158: 0.5 | H158: 0.5 | I158: 0.5 | J158: 0.988 | K158: =Tabla13[[#This Row],[ud2]] -> bolsa
A159: LECHE CONDENSADA | B159: 0.74 | C159: Kg | D159: 2.47 | E159: =Tabla13[[#This Row],[Ud]] -> Kg | F159: 1 | G159: 1 | H159: 1 | I159: 0 | J159: 3.337837838 | K159: =Tabla13[[#This Row],[ud2]] -> Kg
A160: LECHE DELEITE | B160: 1 | C160: L | D160: 2.527027027 | E160: =Tabla13[[#This Row],[Ud]] -> L | F160: 1 | G160: 1 | H160: 1 | I160: 0 | J160: 2.527027027 | K160: =Tabla13[[#This Row],[ud2]] -> L
A161: LECHE EN PÓLVO LA ASTURIANA | B161: 1 | C161: Kg | D161: 0.69 | E161: =Tabla13[[#This Row],[Ud]] -> Kg | F161: 1 | G161: 1 | H161: 1 | I161: 0 | J161: 0.69 | K161: =Tabla13[[#This Row],[ud2]] -> Kg
A162: LECHE RÍO | B162: 1 | C162: L | D162: 6.95 | E162: =Tabla13[[#This Row],[Ud]] -> L | F162: 1 | G162: 1 | H162: 1 | I162: 0 | J162: 6.95 | K162: =Tabla13[[#This Row],[ud2]] -> L
A163: LECHUGA ACHICORIA | B163: 1 | C163: KG | D163: 0.65 | E163: =Tabla13[[#This Row],[Ud]] -> KG | F163: 1 | G163: 0.9 | H163: 0.9 | I163: 0.1 | J163: 0.65 | K163: =Tabla13[[#This Row],[ud2]] -> KG
A164: LECHUGA ESCAROLA LIMPIA | B164: 1 | C164: por bolsa | D164: 1.97 | E164: =Tabla13[[#This Row],[Ud]] -> por bolsa | F164: 1 | G164: 1 | H164: 1 | I164: 0 | J164: 1.97 | K164: =Tabla13[[#This Row],[ud2]] -> por bolsa
A165: LECHUGA HOJA ROBLE | B165: 1 | C165: UD | D165: 0.78 | E165: =Tabla13[[#This Row],[Ud]] -> UD | F165: 1 | G165: 0.8 | H165: 0.8 | I165: 0.2 | J165: 0.78 | K165: =Tabla13[[#This Row],[ud2]] -> UD
A166: LECHUGA ICEBERG | B166: 1 | C166: UD | D166: 1.48 | E166: =Tabla13[[#This Row],[Ud]] -> UD | F166: 1 | G166: 1 | H166: 1 | I166: 0 | J166: 1.48 | K166: =Tabla13[[#This Row],[ud2]] -> UD
A167: LECHUGA OREJA BURRO | B167: 1 | C167: UD | D167: 1.248 | E167: =Tabla13[[#This Row],[Ud]] -> UD | F167: 1 | G167: 0.8 | H167: 0.8 | I167: 0.2 | J167: 1.248 | K167: =Tabla13[[#This Row],[ud2]] -> UD
A168: LECHUGA PAÍS | B168: 1 | C168: UD | D168: 1.17 | E168: =Tabla13[[#This Row],[Ud]] -> UD | F168: 1 | G168: 0.9 | H168: 0.9 | I168: 0.1 | J168: 1.17 | K168: =Tabla13[[#This Row],[ud2]] -> UD
A169: LECHUGA RIZA | B169: 1 | C169: UD | D169: 1.14 | E169: =Tabla13[[#This Row],[Ud]] -> UD | F169: 1 | G169: 0.8 | H169: 0.8 | I169: 0.2 | J169: 1.14 | K169: =Tabla13[[#This Row],[ud2]] -> UD
A170: LECHUGA ROMANA | B170: 1 | C170: UD | D170: 0.572 | E170: =Tabla13[[#This Row],[Ud]] -> UD | F170: 1 | G170: 0.8 | H170: 0.8 | I170: 0.2 | J170: 0.572 | K170: =Tabla13[[#This Row],[ud2]] -> UD
A171: LECHUGA TROCADERO | B171: 1 | C171: UD | D171: 1.1 | E171: =Tabla13[[#This Row],[Ud]] -> UD | F171: 1 | G171: 0.8 | H171: 0.8 | I171: 0.2 | J171: 1.1 | K171: =Tabla13[[#This Row],[ud2]] -> UD
A172: LENGUADO N2 | B172: 1 | C172: KG | D172: 13.662 | E172: =Tabla13[[#This Row],[Ud]] -> KG | F172: 1 | G172: 0.8 | H172: 0.8 | I172: 0.2 | J172: 13.662 | K172: =Tabla13[[#This Row],[ud2]] -> KG
A173: LENGUADO Nº3 CONJELADO | B173: 1 | C173: KG | D173: 9.897 | E173: =Tabla13[[#This Row],[Ud]] -> KG | F173: 1 | G173: 0.5 | H173: 0.5 | I173: 0.5 | J173: 9.897 | K173: =Tabla13[[#This Row],[ud2]] -> KG
A174: LENGUAS DE TERNERA | B174: 1 | C174: KG | D174: 6.835106383 | E174: =Tabla13[[#This Row],[Ud]] -> KG | F174: 1 | G174: 0.4 | H174: 0.4 | I174: 0.6 | J174: 6.835106383 | K174: =Tabla13[[#This Row],[ud2]] -> KG
A175: LENTEJA PARDINA | B175: 1 | C175: KG | D175: 5.95 | E175: =Tabla13[[#This Row],[Ud]] -> KG | F175: 1 | G175: 0.8 | H175: 0.8 | I175: 0.2 | J175: 5.95 | K175: =Tabla13[[#This Row],[ud2]] -> KG
A176: LEVADURA | B176: 1 | C176: KG | D176: 1 | E176: =Tabla13[[#This Row],[Ud]] -> KG | F176: 1 | G176: 1 | H176: 1 | I176: 0 | J176: 1 | K176: =Tabla13[[#This Row],[ud2]] -> KG
A177: LEVADURA PRENSADA | B177: 1 | C177: KG | D177: 3 | E177: =Tabla13[[#This Row],[Ud]] -> KG | F177: 1 | G177: 1 | H177: 1 | I177: 0 | J177: 3 | K177: =Tabla13[[#This Row],[ud2]] -> KG
A178: LIEBRE | B178: 1 | C178: Kg | D178: 6.75 | E178: =Tabla13[[#This Row],[Ud]] -> Kg | F178: 2 | G178: 1.3 | H178: 0.65 | I178: 0.35 | J178: 6.75 | K178: =Tabla13[[#This Row],[ud2]] -> Kg
A179: LIMÓN | B179: 1 | C179: KG | D179: 1.13 | E179: =Tabla13[[#This Row],[Ud]] -> KG | F179: 1 | G179: 0.7 | H179: 0.7 | I179: 0.3 | J179: 1.13 | K179: =Tabla13[[#This Row],[ud2]] -> KG
A180: LOMBARDA | B180: 1 | C180: KG | D180: 1.56 | E180: =Tabla13[[#This Row],[Ud]] -> KG | F180: 1 | G180: 0.5 | H180: 0.5 | I180: 0.5 | J180: 1.56 | K180: =Tabla13[[#This Row],[ud2]] -> KG
A181: LOMO ADOBADO CERDO | B181: 1 | C181: KG | D181: 4.81 | E181: =Tabla13[[#This Row],[Ud]] -> KG | F181: 1 | G181: 1 | H181: 1 | I181: 0 | J181: 4.81 | K181: =Tabla13[[#This Row],[ud2]] -> KG
A182: LOMO BAJO DE TERNERA (CON SOLOMILLO) | B182: 1 | C182: KG | D182: 10.35 | E182: =Tabla13[[#This Row],[Ud]] -> KG | F182: 1 | G182: 0.8 | H182: 0.8 | I182: 0.2 | J182: 10.35 | K182: =Tabla13[[#This Row],[ud2]] -> KG
A183: LOMO DE ATÚN CONGELADO | B183: 1 | C183: KG | D183: 9.363 | E183: =Tabla13[[#This Row],[Ud]] -> KG | F183: 1 | G183: 1 | H183: 1 | I183: 0 | J183: 9.363 | K183: =Tabla13[[#This Row],[ud2]] -> KG
A184: LOMO DE BACALAO DESALADO 300/400 | B184: 1 | C184: KG | D184: 9.342 | E184: =Tabla13[[#This Row],[Ud]] -> KG | F184: 1 | G184: 1 | H184: 1 | I184: 0 | J184: 9.342 | K184: =Tabla13[[#This Row],[ud2]] -> KG
A185: LOMO DE CERDO | B185: 1 | C185: KG | D185: 5.41 | E185: =Tabla13[[#This Row],[Ud]] -> KG | F185: 1 | G185: 1 | H185: 1 | I185: 0 | J185: 5.41 | K185: =Tabla13[[#This Row],[ud2]] -> KG
A186: LOMO DE CIERVO | B186: 1 | C186: KG | D186: 16.5 | E186: =Tabla13[[#This Row],[Ud]] -> KG | F186: 1 | G186: 1 | H186: 1 | I186: 0 | J186: 16.5 | K186: =Tabla13[[#This Row],[ud2]] -> KG
A187: LOMO EMBUCHADO CULAR | B187: 1 | C187: KG | D187: 9.95 | E187: =Tabla13[[#This Row],[Ud]] -> KG | F187: 1 | G187: 1 | H187: 1 | I187: 0 | J187: 9.95 | K187: =Tabla13[[#This Row],[ud2]] -> KG
A188: LOMO IBÉRICO BELLOTA | B188: 1 | C188: KG | D188: 7 | E188: =Tabla13[[#This Row],[Ud]] -> KG | F188: 1 | G188: 1 | H188: 1 | I188: 0 | J188: 7 | K188: =Tabla13[[#This Row],[ud2]] -> KG
A189: LUBINA 400-600 | B189: 1 | C189: KG | D189: 8 | E189: =Tabla13[[#This Row],[Ud]] -> KG | F189: 1 | G189: 1 | H189: 1 | I189: 0 | J189: 8 | K189: =Tabla13[[#This Row],[ud2]] -> KG
A190: LUBINA SALVAJE | B190: 1 | C190: KG | D190: 40 | E190: =Tabla13[[#This Row],[Ud]] -> KG | F190: 1 | G190: 0.6 | H190: 0.6 | I190: 0.4 | J190: 40 | K190: =Tabla13[[#This Row],[ud2]] -> KG
A191: LUBRIGANTE | B191: 1 | C191: KG | D191: 22 | E191: =Tabla13[[#This Row],[Ud]] -> KG | F191: 1 | G191: 1 | H191: 1 | I191: 0 | J191: 22 | K191: =Tabla13[[#This Row],[ud2]] -> KG
A192: LUBRIGANTE CONGELADO EAST COAST, 300 GRS, UD. | B192: 1 | C192: KG | D192: 8 | E192: =Tabla13[[#This Row],[Ud]] -> KG | F192: 1 | G192: 1 | H192: 1 | I192: 0 | J192: 8 | K192: =Tabla13[[#This Row],[ud2]] -> KG
A193: LUBRIGANTE CRUDO 450-500 GR 11 PIEZAS | B193: 1 | C193: KG | D193: 16.6 | E193: =Tabla13[[#This Row],[Ud]] -> KG | F193: 1 | G193: 1 | H193: 1 | I193: 0 | J193: 16.6 | K193: =Tabla13[[#This Row],[ud2]] -> KG
A194: LUBRIGANTE DA RÍA GALEGA | B194: 0.3 | C194: KG | D194: 37.8 | E194: =Tabla13[[#This Row],[Ud]] -> KG | F194: 1 | G194: 1 | H194: 1 | I194: 0 | J194: 126 | K194: =Tabla13[[#This Row],[ud2]] -> KG
A195: LYCHEES | B195: 1 | C195: KG | D195: 3.9 | E195: =Tabla13[[#This Row],[Ud]] -> KG | F195: 1 | G195: 1 | H195: 1 | I195: 0 | J195: 3.9 | K195: =Tabla13[[#This Row],[ud2]] -> KG
A196: MAÍZ DULCE | B196: 1 | C196: KG | D196: 3 | E196: =Tabla13[[#This Row],[Ud]] -> KG | F196: 1 | G196: 1 | H196: 1 | I196: 0 | J196: 3 | K196: =Tabla13[[#This Row],[ud2]] -> KG
A197: MAIZENA | B197: 1 | C197: KG | D197: 3.116 | E197: =Tabla13[[#This Row],[Ud]] -> KG | F197: 1 | G197: 1 | H197: 1 | I197: 0 | J197: 3.116 | K197: =Tabla13[[#This Row],[ud2]] -> KG
A198: MANDARINA CLEMENTINA | B198: 1 | C198: KG | D198: 1.38 | E198: =Tabla13[[#This Row],[Ud]] -> KG | F198: 1 | G198: 1 | H198: 1 | I198: 0 | J198: 1.38 | K198: =Tabla13[[#This Row],[ud2]] -> KG
A199: MANGO | B199: 1 | C199: KG | D199: 2 | E199: =Tabla13[[#This Row],[Ud]] -> KG | F199: 1 | G199: 0.8 | H199: 0.8 | I199: =1-H199 -> 0.2 | J199: 2 | K199: =Tabla13[[#This Row],[ud2]] -> KG
A200: MANTECA DE CERDO | B200: 1 | C200: KG | D200: 2 | E200: =Tabla13[[#This Row],[Ud]] -> KG | F200: 1 | G200: 1 | H200: 1 | I200: 0 | J200: 2 | K200: =Tabla13[[#This Row],[ud2]] -> KG
A201: MANTEQUILLA PASCUAL | B201: 1 | C201: KG | D201: 3.9976 | E201: =Tabla13[[#This Row],[Ud]] -> KG | F201: 1 | G201: 1 | H201: 1 | I201: 0 | J201: 3.9976 | K201: =Tabla13[[#This Row],[ud2]] -> KG
A202: MANZANA ENANA EN ALMÍBAR | B202: 1 | C202: KG | D202: 0.2 | E202: =Tabla13[[#This Row],[Ud]] -> KG | F202: 1 | G202: 1 | H202: =G202/F202 -> 1 | I202: 0 | J202: 0.2 | K202: =Tabla13[[#This Row],[ud2]] -> KG
A203: MANZANA GOLDEN | B203: 1 | C203: KG | D203: 1.08 | E203: =Tabla13[[#This Row],[Ud]] -> KG | F203: 1 | G203: 1 | H203: 1 | I203: 0 | J203: 1.08 | K203: =Tabla13[[#This Row],[ud2]] -> KG
... 599 more rows

Sheet ESCANDALLO
B2: FICHA TÉCNICA + ESCANDALLO
B4: NOME | C4: Data de valoración | J4: Tipo de servizo
G5: Carta | J5: Menú | L5: Banquete
G6: x
E7: receta madre
C8: % | E8: RACIONES | G8: 8 | H8: RACIONES | J8: 25 | K8: prezo
B9: Ingredentes | C9: Aprove | D9: Merma | E9: Bruto | F9: Neto | G9: ud | H9: Bruto | I9: neto | J9: ud | K9: compra | L9: receta
C10: =IF(B10="","",VLOOKUP(B10,lista!$A$3:$K$1100,8,0)) ->  | D10: =IF(C10="","",1-C10) ->  | E10: =IF(B10="","",F10/C10) ->  | G10: =IF(B10="","",VLOOKUP(B10,lista!$A$3:$K$1100,5,0)) ->  | H10: =IF(B10="","",I10/C10) ->  | I10: =IF(B10="","",$J$8*F10/$G$8) ->  | J10: =G10 ->  | K10: =IF(B10="","",VLOOKUP(B10,lista!$A$3:$K$1100,10,0)) ->  | L10: =IF(B10="","",K10*H10) -> 
C11: =IF(B11="","",VLOOKUP(B11,lista!$A$3:$K$1100,8,0)) ->  | D11: =IF(C11="","",1-C11) ->  | E11: =IF(B11="","",F11/C11) ->  | G11: =IF(B11="","",VLOOKUP(B11,lista!$A$3:$K$1100,5,0)) ->  | H11: =IF(B11="","",I11/C11) ->  | I11: =IF(B11="","",$J$8*F11/$G$8) ->  | J11: =G11 ->  | K11: =IF(B11="","",VLOOKUP(B11,lista!$A$3:$K$1100,10,0)) ->  | L11: =IF(B11="","",K11*H11) -> 
C12: =IF(B12="","",VLOOKUP(B12,lista!$A$3:$K$1100,8,0)) ->  | G12: =IF(B12="","",VLOOKUP(B12,lista!$A$3:$K$1100,5,0)) ->  | K12: =IF(B12="","",VLOOKUP(B12,lista!$A$3:$K$1100,10,0)) -> 
C13: =IF(B13="","",VLOOKUP(B13,lista!$A$3:$K$1100,8,0)) ->  | G13: =IF(B13="","",VLOOKUP(B13,lista!$A$3:$K$1100,5,0)) ->  | K13: =IF(B13="","",VLOOKUP(B13,lista!$A$3:$K$1100,10,0)) -> 
C14: =IF(B14="","",VLOOKUP(B14,lista!$A$3:$K$1100,8,0)) ->  | G14: =IF(B14="","",VLOOKUP(B14,lista!$A$3:$K$1100,5,0)) ->  | K14: =IF(B14="","",VLOOKUP(B14,lista!$A$3:$K$1100,10,0)) -> 
C15: =IF(B15="","",VLOOKUP(B15,lista!$A$3:$K$1100,8,0)) ->  | G15: =IF(B15="","",VLOOKUP(B15,lista!$A$3:$K$1100,5,0)) ->  | K15: =IF(B15="","",VLOOKUP(B15,lista!$A$3:$K$1100,10,0)) -> 
C16: =IF(B16="","",VLOOKUP(B16,lista!$A$3:$K$1100,8,0)) ->  | G16: =IF(B16="","",VLOOKUP(B16,lista!$A$3:$K$1100,5,0)) ->  | K16: =IF(B16="","",VLOOKUP(B16,lista!$A$3:$K$1100,10,0)) -> 
C17: =IF(B17="","",VLOOKUP(B17,lista!$A$3:$K$1100,8,0)) ->  | G17: =IF(B17="","",VLOOKUP(B17,lista!$A$3:$K$1100,5,0)) ->  | K17: =IF(B17="","",VLOOKUP(B17,lista!$A$3:$K$1100,10,0)) -> 
C18: =IF(B18="","",VLOOKUP(B18,lista!$A$3:$K$1100,8,0)) ->  | G18: =IF(B18="","",VLOOKUP(B18,lista!$A$3:$K$1100,5,0)) ->  | K18: =IF(B18="","",VLOOKUP(B18,lista!$A$3:$K$1100,10,0)) -> 
B19: PROCESO ELABORACION
B20: ELABORACION | H20: Tempo | I20: Ude | J20: PRECAUCIONS
B26: Mollo/gornición
E33: Utensilios | I33: Foto
B36: CUSTE M.P receita | C36: =SUM(L10:L18) -> 0 | E36: Ceboleiro | F36: √
B37: Custe ración | C37: =C36/J8 -> 0 | E37: Puntilla | F37: √
B38: marxe erro | C38: =C37*D38 -> 0 | D38: 0.05 | E38: Pelador | F38: √
B39: custe ración inc mx | C39: =C37+C38 -> 0 | E39: Táboa de corte | F39: √
B40: % Benef bruto | C40: 0.7 | E40: Deshuesador
B41: Benef bruto | C41: =C42-C39 -> 0 | E41: Rondón | F41: √
B42: PVP | C42: =C39/(1-C40) -> 0 | E42: Espumadera | F42: √
B43: ive | C43: =C42*D43 -> 0 | D43: 0.1 | E43: Coador | F43: √
B44: Pvp con ive | C44: =C42+C43 -> 0 | E44: Cazo | F44: √
B45: Presentación

Sheet ex
B2: FICHA TÉCNICA + ESCANDALLO
B4: NOME | C4: Data de valoración | J4: Tipo de servizo
B5: PESCADA Á GALEGA | C5: 41353 | G5: Carta | J5: Menú | L5: Banquete
G6: x
E7: receta madre
C8: % | E8: RACIONES | G8: 1 | H8: RACIONES | J8: 25 | K8: prezo
B9: Ingredientes | C9: Aprove | D9: Merma | E9: Bruto | F9: Neto | G9: ud | H9: Bruto | I9: neto | J9: ud | K9: compra | L9: receta
B10: MERLUZA DEL PINCHO | C10: =IF(B10="","",VLOOKUP(B10,lista!$A$3:$L$1100,8,0)) -> 0.6 | D10: =IF(C10="","",1-C10) -> 0.4 | E10: =IF(B10="","",F10/C10) -> 0.3333333333 | F10: 0.2 | G10: =IF(B10="","",VLOOKUP(B10,lista!$A$3:$E$1100,5,0)) -> KG | H10: =IF(B10="","",I10/C10) -> 8.333333333 | I10: =$J$8*F10/$G$8 -> 5 | J10: =G10 -> KG | K10: =IF(B10="","",VLOOKUP(B10,lista!$A$3:$K$1100,10,0)) -> 6.4 | L10: =IF(B10="","",K10*H10) -> 53.33333333
B11: PATATA NUEVA | C11: =IF(B11="","",VLOOKUP(B11,lista!$A$3:$L$1100,8,0)) -> 0.8 | D11: =IF(C11="","",1-C11) -> 0.2 | E11: =IF(B11="","",F11/C11) -> 0.75 | F11: 0.6 | G11: =IF(B11="","",VLOOKUP(B11,lista!$A$3:$E$1100,5,0)) -> KG | H11: =IF(B11="","",I11/C11) -> 18.75 | I11: =$J$8*F11/$G$8 -> 15 | J11: =G11 -> KG | K11: =IF(B11="","",VLOOKUP(B11,lista!$A$3:$K$1100,10,0)) -> 0.9 | L11: =IF(B11="","",K11*H11) -> 16.875
B12: ACEITE VIRGEN EXTRA | C12: =IF(B12="","",VLOOKUP(B12,lista!$A$3:$L$1100,8,0)) -> 1 | D12: 0 | E12: 0.02 | F12: 0.02 | G12: =IF(B12="","",VLOOKUP(B12,lista!$A$3:$E$1100,5,0)) -> L | H12: 0.5 | I12: 0.5 | J12: L | K12: =IF(B12="","",VLOOKUP(B12,lista!$A$3:$K$1100,10,0)) -> 3.1 | L12: 1.55
B13: PIMENTÓN DULCE | C13: =IF(B13="","",VLOOKUP(B13,lista!$A$3:$L$1100,8,0)) -> 1 | D13: 0 | E13: 0.005 | F13: 0.005 | G13: =IF(B13="","",VLOOKUP(B13,lista!$A$3:$E$1100,5,0)) -> KG | H13: 0.125 | I13: 0.125 | J13: KG | K13: =IF(B13="","",VLOOKUP(B13,lista!$A$3:$K$1100,10,0)) -> 5.95 | L13: 0.74375
B14: AJO | C14: =IF(B14="","",VLOOKUP(B14,lista!$A$3:$L$1100,8,0)) -> 0.95 | D14: 0.05 | E14: 0.005263157895 | F14: 0.005 | G14: =IF(B14="","",VLOOKUP(B14,lista!$A$3:$E$1100,5,0)) -> Kg | H14: 0.1315789474 | I14: 0.125 | J14: Kg | K14: =IF(B14="","",VLOOKUP(B14,lista!$A$3:$K$1100,10,0)) -> 3.9 | L14: 0.5131578947
B15: SAL GRUESA | C15: =IF(B15="","",VLOOKUP(B15,lista!$A$3:$L$1100,8,0)) -> 1 | D15: 0 | E15: 0.002 | F15: 0.002 | G15: =IF(B15="","",VLOOKUP(B15,lista!$A$3:$E$1100,5,0)) -> KG | H15: 0.05 | I15: 0.05 | J15: KG | K15: =IF(B15="","",VLOOKUP(B15,lista!$A$3:$K$1100,10,0)) -> 0.25 | L15: 0.0125
C16: =IF(B16="","",VLOOKUP(B16,lista!$A$3:$L$1100,8,0)) ->  | D16: =IF(C16="","",1-C16) ->  | E16: =IF(B16="","",F16/C16) ->  | G16: =IF(B16="","",VLOOKUP(B16,lista!$A$3:$E$1100,5,0)) ->  | H16: =IF(B16="","",I16/C16) ->  | I16: =$J$8*F16/$G$8 -> 0 | J16: =G16 ->  | K16: =IF(B16="","",VLOOKUP(B16,lista!$A$3:$K$1100,10,0)) ->  | L16: =IF(B16="","",K16*H16) -> 
C17: =IF(B17="","",VLOOKUP(B17,lista!$A$3:$L$1100,8,0)) ->  | G17: =IF(B17="","",VLOOKUP(B17,lista!$A$3:$E$1100,5,0)) ->  | I17: 0 | K17: =IF(B17="","",VLOOKUP(B17,lista!$A$3:$K$1100,10,0)) -> 
C18: =IF(B18="","",VLOOKUP(B18,lista!$A$3:$L$1100,8,0)) ->  | G18: =IF(B18="","",VLOOKUP(B18,lista!$A$3:$E$1100,5,0)) ->  | I18: 0 | K18: =IF(B18="","",VLOOKUP(B18,lista!$A$3:$K$1100,10,0)) -> 
B19: PROCESO ELABORACION
B20: ELABORACION | H20: Tempo | I20: Ude | J20: PRECAUCIONS
B21: 1. Limpar a pescada e cortar toros de 200 gr. Refrixerar. | H21: 6 | I21: min
B22: 2. Pelar patacas e cortar tamén en toros regulares. | H22: 4
B23: 3.Sobre comanda, pór as patacas a cocer co sal e o loureiro. | H23: 16
B24: 4. Cando case estean as patacas amécese a pescada. Ao ferver retirar do lume e agardar 2'. | H24: 2
B25: 5. Escorrer, empratar e salsear coa allada. | H25: 1
B26: Mollo/gornición
B28: 1. Atemperar o aceite cos allos enteiros pero lixeiramente esmagados. Manter 30' sen superar os 100ºC
B29: 2. Amecer o pementón e remexer.Deixar infusionar.
B30: 3. Coar e decantar, reservando os dentes de allo.
E33: Utensilios | I33: Foto
B36: CUSTE M.P receita | C36: =SUM(L10:L18) -> 73.02774123 | E36: Ceboleiro | F36: √
B37: Custe ración | C37: =C36/J8 -> 2.921109649 | E37: Puntilla | F37: √
B38: marxe erro | C38: =C37*D38 -> 0.1460554825 | D38: 0.05 | E38: Pelador | F38: √
B39: custe ración inc mx | C39: =C37+C38 -> 3.067165132 | E39: Táboa de corte | F39: √
B40: % Benef bruto | C40: 0.65 | E40: Deshuesador
B41: Benef bruto | C41: =C42-C39 -> 5.696163816 | E41: Rondón | F41: √
B42: PVP | C42: =C39/(1-C40) -> 8.763328947 | E42: Espumadera | F42: √
B43: ive | C43: =C42*D43 -> 0.8763328947 | D43: 0.1 | E43: Coador | F43: √
B44: Pvp con ive | C44: =C42+C43 -> 9.639661842 | E44: Cazo | F44: √
B45: Presentación

Sheet Hoja2
